fUSD/lending_fUSD_20250422
["ID","MTS","AMOUNT","RATE_DAILY","PERIOD"]
[358597389,1745298659445,-500.0,0.00054794,120]
[358597390,1745298659454,-374.87106857,0.00054794,120]
[358597391,1745298659464,-500.0,0.00054794,120]
[358597392,1745298659474,-500.0,0.00054794,120]
[358597393,1745298659483,-500.0,0.00054794,120]
[358597394,1745298659492,-534.16347028,0.00054794,120]
[358597395,1745298659503,-500.0,0.00054794,120]
[358597396,1745298659513,-558.71832058,0.00054794,120]
[358597397,1745298659524,-500.0,0.00054794,120]
[358597398,1745298659534,-643.38,0.00054794,120]
[358597399,1745298659543,-500.0,0.00054794,120]
[358597400,1745298659554,-507.31745364,0.00054794,120]
[358597401,1745298659564,-500.0,0.00054794,60]
[358597402,1745298659574,-500.0,0.00054794,120]
[358597403,1745298659584,-691.21,0.00054794,120]
[358597404,1745298659595,-2959.67,0.00054794,2]
[358597405,1745298659604,-1743.81,0.00054794,120]
[358597406,1745298659613,-500.0,0.00054794,120]
[358597407,1745298659623,-500.0,0.00054794,120]
[358597408,1745298659632,-500.0,0.00054794,120]
[358597409,1745298659641,-538.30335971,0.00054794,120]
[358597410,1745298659651,-500.0,0.00054794,120]
[358597411,1745298659660,-673.23,0.00054794,120]
[358597412,1745298659669,-591.69183917,0.00054794,120]
[358597413,1745298659679,-500.0,0.00054794,8]
[358597414,1745298659688,-611.28,0.00054794,120]
[358597415,1745298659697,-500.0,0.00054794,120]
[358597416,1745298659707,-500.0,0.00054794,120]
[358597417,1745298659716,-500.0,0.00054794,120]
[358597418,1745298659725,-528.68363371,0.00054794,120]
[358597419,1745298659734,-510.52930826,0.00054794,120]
[358597420,1745298659743,-500.0,0.00054794,120]
[358597421,1745298659752,-553.79,0.00054794,120]
[358597422,1745298659761,-500.0,0.00054794,120]
[358597423,1745298659771,-531.8101957,0.00054794,120]
[358597424,1745298659779,-500.0,0.00054794,120]
[358597425,1745298659789,-464.67568902,0.00054794,120]
[358597426,1745298659798,-500.0,0.00054794,120]
[358597427,1745298659807,-500.0,0.00054794,120]
[358597428,1745298659816,-500.0,0.00054794,120]
[358597429,1745298659826,-500.0,0.00054794,120]
[358597430,1745298659836,-500.0,0.00054794,120]
[358597431,1745298659846,-500.0,0.00054794,120]
[358597432,1745298659855,-500.0,0.00054794,120]
[358597433,1745298659865,-500.0,0.00054794,120]
[358597434,1745298659874,-776.47,0.00054794,120]
[358597435,1745298659883,-500.0,0.00054794,120]
[358597436,1745298659892,-500.0,0.00054794,120]
[358597437,1745298659902,-577.57,0.00054794,120]
[358597438,1745298659911,-500.0,0.00054794,120]
[358597439,1745298659924,-500.0,0.00054794,120]
[358597440,1745298659935,-500.0,0.00054794,120]
[358597441,1745298659944,-500.0,0.00054794,120]
[358597442,1745298659954,-500.0,0.00054794,120]
[358597443,1745298659963,-500.0,0.00054794,120]
[358597444,1745298659972,-20766.77,0.00054794,120]
[358597445,1745298659982,-500.0,0.00054794,120]
[358597446,1745298659991,-500.0,0.00054794,120]
[358597447,1745298660001,-505.05226684,0.00054794,2]
[358597448,1745298660011,-630.66,0.00054794,120]
[358597449,1745298660020,-500.0,0.00054794,120]
[358597450,1745298660030,-502.41176417,0.00054794,2]
[358597451,1745298660040,-500.0,0.00054794,120]
[358597452,1745298660050,-500.0,0.00054794,120]
[358597453,1745298660065,-500.0,0.00054794,2]
[358597454,1745298660078,-500.0,0.00054794,120]
[358597455,1745298660087,-500.0,0.00054794,120]
[358597456,1745298660097,-500.0,0.00054794,120]
[358597457,1745298660106,-500.0,0.00054794,120]
[358597458,1745298660117,-500.0,0.00054794,120]
[358597459,1745298660129,-500.0,0.00054794,120]
[358597460,1745298660139,-500.0,0.00054794,120]
[358597461,1745298660149,-500.0,0.00054794,2]
[358597462,1745298660159,-557.45,0.00054794,120]
[358597463,1745298660169,-500.0,0.00054794,120]
[358597464,1745298660180,-509.79611355,0.00054794,2]
[358597465,1745298660190,-500.0,0.00054794,120]
[358597466,1745298660200,-500.0,0.00054794,120]
[358597467,1745298660210,-500.0,0.00054794,120]
[358597468,1745298660220,-500.0,0.00054794,120]
[358597469,1745298660229,-500.0,0.00054794,120]
[358597470,1745298660239,-500.0,0.00054794,120]
[358597471,1745298660249,-597.45,0.00054794,120]
[358597472,1745298660259,-500.0,0.00054794,120]
[358597473,1745298660269,-1266.32,0.00054794,120]
[358597474,1745298660278,-500.0,0.00054794,3]
[358597475,1745298660288,-500.0,0.00054794,2]
[358597476,1745298660298,-500.0,0.00054794,120]
[358597477,1745298660308,-515.88,0.00054794,120]
[358597478,1745298660317,-500.0,0.00054794,2]
[358597479,1745298660327,-529.59349693,0.00054794,120]
[358597480,1745298660336,-500.0,0.00054794,120]
[358597481,1745298660345,-500.95651996,0.00054794,120]
[358597482,1745298660355,-500.0,0.00054794,120]
[358597483,1745298660364,-500.0,0.00054794,120]
[358597484,1745298660373,-500.0,0.00054794,120]
[358597485,1745298660383,-500.0,0.00054794,120]
[358597486,1745298660392,-1297.76,0.00054794,120]
[358597487,1745298660401,-500.0,0.00054794,120]
[358597488,1745298660411,-500.0,0.00054794,120]
[358597489,1745298660420,-523.89322496,0.00054794,120]
[358597490,1745298660429,-500.0,0.00054794,120]
[358597491,1745298660438,-500.0,0.00054794,120]
[358597492,1745298660448,-500.0,0.00054794,120]
[358597493,1745298660457,-631.49,0.00054794,120]
[358597494,1745298660466,-500.0,0.00054794,120]
[358597495,1745298660475,-500.0,0.00054794,120]
[358597496,1745298660484,-500.0,0.00054794,120]
[358597497,1745298660494,-500.0,0.00054794,120]
[358597498,1745298660503,-500.0,0.00054794,120]
[358597499,1745298660512,-500.0,0.00054794,120]
[358597500,1745298660522,-500.0,0.00054794,120]
[358597501,1745298660531,-500.0,0.00054794,120]
[358597502,1745298660540,-519.52877683,0.00054794,120]
[358597503,1745298660549,-4000.0,0.00054795,60]
[358597504,1745298660559,-151.0,0.00054795,120]
[358597505,1745298660569,-13235.89,0.00054795,30]
[358597506,1745298660578,-3197.67538443,0.00054795,60]
[358597507,1745298660588,-451.78558978,0.00054795,60]
[358597508,1745298660597,-151.5802465,0.00054795,120]
[358597509,1745298660606,-296.01949461,0.00054795,120]
[358597510,1745298660615,-500.0,0.00054795,120]
[358597511,1745298660624,-173.65258894,0.00054795,120]
[358597512,1745298660633,-150.0,0.00054795,2]
[358597513,1745298660643,-247.66102744,0.000548,120]
[358597514,1745298660652,-25204.84936438,0.000548,120]
[358597515,1745298660662,-999.0,0.00054821,120]
[358597516,1745298660672,-1100.0,0.00054838,60]
[358597517,1745298660682,-200.0,0.000549,100]
[358597518,1745298660691,-1300.0,0.000549,20]
[358597519,1745298660700,-500.0,0.00054907,60]
[358597520,1745298660710,-400.0,0.0005497,7]
[358597521,1745298660719,-700.0,0.0005497,7]
[358597522,1745298660728,-426.0,0.00055,2]
[358597523,1745298660738,-1100.0,0.00055,2]
[358597524,1745298660749,-211.19788319,0.00055,120]
[358597525,1745298660758,-1354.8022125,0.00055,90]
[358597526,1745298660768,-250.0,0.00055,5]
[358597527,1745298660778,-171.0,0.00055,120]
[358597528,1745298660788,-3464.32,0.00055068,120]
[358597529,1745298660798,-200.0,0.00055072,120]
[358597530,1745298660807,-356.11921378,0.00055099,14]
[358597531,1745298660820,-206.0,0.0005518,30]
[358597532,1745298660829,-211.0,0.0005518,30]
[358597533,1745298660839,-209.0,0.0005518,30]
[358597534,1745298660849,-211.0,0.0005518,30]
[358597535,1745298660859,-209.0,0.0005518,30]
[358597536,1745298660868,-222.0,0.0005518,30]
[358597537,1745298660877,-500.0,0.00055259,120]
[358597538,1745298660887,-500.0,0.00055259,120]
[358597539,1745298660896,-150.0,0.00055341,120]
[358597540,1745298660906,-244.07757749,0.00055342,2]
[358597541,1745298660916,-1123.355858,0.00055342,120]
[358597542,1745298660925,-161.863255,0.00055342,120]
[358597543,1745298660935,-151.0,0.00055342,120]
[358597544,1745298660945,-486.829956,0.00055342,120]
[358597545,1745298660955,-296.593929,0.00055342,120]
[358597546,1745298660965,-151.0,0.00055342,120]
[358597547,1745298660974,-151.0,0.00055342,120]
[358597548,1745298660983,-151.0,0.00055342,120]
[358597549,1745298660993,-151.0,0.00055342,120]
[358597550,1745298661002,-159.859354,0.00055342,120]
[358597551,1745298661011,-151.0,0.00055342,120]
[358597552,1745298661021,-151.0,0.00055342,120]
[358597553,1745298661031,-151.0,0.00055342,120]
[358597554,1745298661040,-151.0,0.00055342,120]
[358597555,1745298661050,-151.0,0.00055342,120]
[358597556,1745298661061,-151.0,0.00055342,30]
[358597557,1745298661071,-160.216767,0.00055342,120]
[358597558,1745298661080,-157.454094,0.00055342,120]
[358597559,1745298661089,-254.569227,0.00055342,120]
[358597560,1745298661140,-151.0,0.00055342,120]
[358597561,1745298661151,-151.0,0.00055342,120]
[358597562,1745298661161,-151.0,0.00055342,120]
[358597563,1745298661170,-151.0,0.00055342,120]
[358597564,1745298661179,-151.0,0.00055342,120]
[358597565,1745298661188,-151.0,0.00055342,120]
[358597566,1745298661198,-500.0,0.00055342,120]
[358597567,1745298661207,-151.0,0.00055342,120]
[358597568,1745298661216,-151.0,0.00055342,120]
[358597569,1745298661226,-151.0,0.00055342,120]
[358597570,1745298661236,-151.0,0.00055342,120]
[358597571,1745298661245,-623.8031,0.00055342,2]
[358597572,1745298661254,-623.8031,0.00055342,2]
[358597573,1745298661263,-500.0,0.00055342,120]
[358597574,1745298661272,-500.0,0.00055342,120]
[358597575,1745298661281,-500.0,0.00055342,120]
[358597576,1745298661290,-534.94732,0.00055342,120]
[358597577,1745298661299,-534.94732,0.00055342,120]
[358597578,1745298661309,-526.69550988,0.00055342,120]
[358597579,1745298661320,-500.0,0.00055342,120]
[358597580,1745298661330,-500.0,0.00055342,120]
[358597581,1745298661339,-542.79910736,0.00055342,120]
[358597582,1745298661347,-500.0,0.00055342,120]
[358597583,1745298661357,-500.0,0.00055342,120]
[358597584,1745298661366,-500.0,0.00055342,120]
[358597585,1745298661375,-500.0,0.00055342,60]
[358597586,1745298661386,-500.0,0.00055342,120]
[358597587,1745298661395,-500.0,0.00055342,120]
[358597588,1745298661404,-600.0,0.00055342,120]
[358597589,1745298661413,-151.0,0.00055342,110]
[358597590,1745298661422,-500.0,0.00055342,120]
[358597591,1745298661432,-528.0137348,0.00055342,7]
[358597592,1745298661441,-500.0,0.00055342,120]
[358597593,1745298661451,-511.40012498,0.00055342,120]
[358597594,1745298661460,-500.0,0.00055342,120]
[358597595,1745298661469,-500.0,0.00055342,120]
[358597596,1745298661478,-1000.0,0.00055342,120]
[358597597,1745298661488,-500.0,0.00055342,120]
[358597598,1745298661499,-500.0,0.00055342,120]
[358597599,1745298661511,-500.0,0.00055342,120]
[358597600,1745298661521,-500.0,0.00055342,120]
[358597601,1745298661532,-500.0,0.00055342,120]
[358597602,1745298661542,-151.0,0.00055342,120]
[358597603,1745298661553,-579.62926048,0.00055342,120]
[358597604,1745298661563,-500.0,0.00055342,120]
[358597605,1745298661573,-151.0,0.00055342,120]
[358597606,1745298661582,-500.0,0.00055342,120]
[358597607,1745298661591,-367.726189,0.00055342,120]
[358597608,1745298661601,-500.0,0.00055342,120]
[358597609,1745298661610,-568.00394227,0.00055342,120]
[358597610,1745298661619,-500.0,0.00055342,120]
[358597611,1745298661629,-740.11,0.00055342,120]
[358597612,1745298661638,-500.0,0.00055342,120]
[358597613,1745298661647,-500.0,0.00055342,120]
[358597614,1745298661657,-500.0,0.00055342,120]
[358597615,1745298661666,-500.0,0.00055342,120]
[358597616,1745298661675,-500.0,0.00055342,120]
[358597617,1745298661685,-500.0,0.00055342,120]
[358597618,1745298661694,-500.0,0.00055342,120]
[358597619,1745298661704,-500.0,0.00055342,120]
[358597620,1745298661714,-500.0,0.00055342,120]
[358597621,1745298661723,-500.0,0.00055342,120]
[358597622,1745298661732,-332.22682984,0.00055342,120]
[358597623,1745298661742,-500.0,0.00055342,120]
[358597624,1745298661751,-500.0,0.00055342,120]
[358597625,1745298661761,-500.0,0.00055342,120]
[358597626,1745298661771,-500.0,0.00055342,120]
[358597627,1745298661780,-500.0,0.00055342,120]
[358597628,1745298661790,-500.0,0.00055342,120]
[358597629,1745298661799,-500.0,0.00055342,120]
[358597630,1745298661810,-673.62,0.00055342,120]
[358597631,1745298661819,-500.0,0.00055342,120]
[358597632,1745298661829,-574.32,0.00055342,120]
[358597633,1745298661839,-500.0,0.00055342,120]
[358597634,1745298661848,-500.86071874,0.00055342,120]
[358597635,1745298661857,-500.0,0.00055342,120]
[358597636,1745298661867,-500.0,0.00055342,120]
[358597637,1745298661876,-500.0,0.00055342,120]
[358597638,1745298661886,-500.0,0.00055342,120]
[358597639,1745298661895,-500.0,0.00055342,120]
[358597640,1745298661904,-500.0,0.00055342,120]
[358597641,1745298661914,-500.0,0.00055342,120]
[358597642,1745298661924,-500.0,0.00055342,120]
[358597643,1745298661934,-500.0,0.00055342,120]
[358597644,1745298661942,-500.0,0.00055342,120]
[358597645,1745298661953,-500.0,0.00055342,120]
[358597646,1745298661963,-500.0,0.00055342,120]
[358597647,1745298661972,-500.0,0.00055342,120]
[358597648,1745298661982,-567.49056603,0.00055342,120]
[358597649,1745298661991,-500.0,0.00055342,120]
[358597650,1745298662001,-583.51453194,0.00055342,120]
[358597651,1745298662011,-500.0,0.00055342,120]
[358597652,1745298662020,-245.856292,0.00055342,120]
[358597653,1745298662030,-486.62901952,0.00055342,120]
[358597654,1745298662039,-500.0,0.00055342,120]
[358597655,1745298662048,-500.0,0.00055342,120]
[358597656,1745298662062,-500.0,0.00055342,30]
[358597657,1745298662072,-500.0,0.00055342,120]
[358597658,1745298662082,-500.0,0.00055342,120]
[358597659,1745298662091,-500.0,0.00055342,120]
[358597660,1745298662101,-540.39827111,0.00055342,120]
[358597661,1745298662110,-228.92545678,0.00055342,120]
[358597662,1745298662120,-500.0,0.00055342,120]
[358597663,1745298662130,-588.8312933,0.00055342,120]
[358597664,1745298662140,-500.0,0.00055342,120]
[358597665,1745298662150,-528.66194959,0.00055342,120]
[358597666,1745298662160,-500.0,0.00055342,120]
[358597667,1745298662170,-272.48643184,0.00055342,120]
[358597668,1745298662180,-1004.96,0.00055342,120]
[358597669,1745298662189,-500.0,0.00055342,120]
[358597670,1745298662199,-508.7705413,0.00055342,120]
[358597671,1745298662208,-500.0,0.00055342,120]
[358597672,1745298662218,-500.0,0.00055342,120]
[358597673,1745298662228,-500.0,0.00055342,120]
[358597674,1745298662238,-500.0,0.00055342,120]
[358597675,1745298662247,-500.0,0.00055342,120]
[358597676,1745298662256,-500.0,0.00055342,120]
[358597677,1745298662266,-690.67,0.00055342,120]
[358597678,1745298662275,-163.169505,0.00055342,120]
[358597679,1745298662285,-500.0,0.00055342,120]
[358597680,1745298662295,-500.0,0.00055342,120]
[358597681,1745298662304,-500.0,0.00055342,120]
[358597682,1745298662313,-549.96566708,0.00055342,120]
[358597683,1745298662323,-500.0,0.00055342,120]
[358597684,1745298662332,-560.08,0.00055342,120]
[358597685,1745298662343,-616.09607377,0.00055342,120]
[358597686,1745298662354,-500.0,0.00055342,120]
[358597687,1745298662365,-162.77689395,0.00055342,120]
[358597688,1745298662385,-500.0,0.00055342,120]
[358597689,1745298662396,-500.0,0.00055342,120]
[358597690,1745298662406,-229.11861178,0.00055342,120]
[358597691,1745298662415,-500.0,0.00055342,120]
[358597692,1745298662426,-500.0,0.00055342,120]
[358597693,1745298662435,-500.0,0.00055342,120]
[358597694,1745298662444,-500.0,0.00055342,120]
[358597695,1745298662454,-500.0,0.00055342,120]
[358597696,1745298662463,-500.0,0.00055342,120]
[358597697,1745298662473,-500.0,0.00055342,120]
[358597698,1745298662483,-500.0,0.00055342,120]
[358597699,1745298662492,-620.88,0.00055342,120]
[358597700,1745298662502,-500.0,0.00055342,120]
[358597701,1745298662511,-500.0,0.00055342,120]
[358597702,1745298662520,-500.0,0.00055342,120]
[358597703,1745298662530,-500.0,0.00055342,120]
[358597704,1745298662539,-500.0,0.00055342,120]
[358597705,1745298662549,-500.0,0.00055342,120]
[358597706,1745298662559,-527.20692166,0.00055342,120]
[358597707,1745298662568,-500.0,0.00055342,120]
[358597708,1745298662577,-205.8409262,0.00055342,120]
[358597709,1745298662587,-509.45,0.00055342,120]
[358597710,1745298662596,-500.0,0.00055342,120]
[358597711,1745298662606,-500.0,0.00055342,120]
[358597712,1745298662615,-500.0,0.00055342,120]
[358597713,1745298662625,-500.0,0.00055342,120]
[358597714,1745298662635,-539.45874009,0.00055342,120]
[358597715,1745298662644,-500.0,0.00055342,120]
[358597716,1745298662654,-500.0,0.00055342,120]
[358597717,1745298662664,-515.19,0.00055342,120]
[358597718,1745298662673,-500.0,0.00055342,120]
[358597719,1745298662683,-500.0,0.00055342,120]
[358597720,1745298662692,-500.0,0.00055342,120]
[358597721,1745298662702,-547.55285295,0.00055342,120]
[358597722,1745298662712,-500.0,0.00055342,120]
[358597723,1745298662722,-500.0,0.00055342,120]
[358597724,1745298662731,-500.0,0.00055342,120]
[358597725,1745298662741,-500.0,0.00055342,120]
[358597726,1745298662750,-642.61579925,0.00055342,120]
[358597727,1745298662760,-500.0,0.00055342,120]
[358597728,1745298662770,-557.45106445,0.00055342,120]
[358597729,1745298662779,-500.0,0.00055342,120]
[358597730,1745298662789,-500.0,0.00055342,120]
[358597731,1745298662798,-500.0,0.00055342,120]
[358597732,1745298662808,-500.0,0.00055342,120]
[358597733,1745298662818,-500.0,0.00055342,10]
[358597734,1745298662827,-500.0,0.00055342,120]
[358597735,1745298662837,-500.0,0.00055342,120]
[358597736,1745298662846,-500.0,0.00055342,120]
[358597737,1745298662856,-500.0,0.00055342,120]
[358597738,1745298662866,-500.0,0.00055342,120]
[358597739,1745298662876,-166.854143,0.00055342,120]
[358597740,1745298662886,-509.28297476,0.00055342,120]
[358597741,1745298662895,-1105.87,0.00055342,120]
[358597742,1745298662905,-546.12922002,0.00055342,120]
[358597743,1745298662915,-506.83617945,0.00055342,120]
[358597744,1745298662925,-500.0,0.00055342,120]
[358597745,1745298662935,-527.48648115,0.00055342,120]
[358597746,1745298662944,-498.22251067,0.00055342,120]
[358597747,1745298662954,-500.0,0.00055342,120]
[358597748,1745298662964,-500.0,0.00055342,120]
[358597749,1745298662974,-500.0,0.00055342,120]
[358597750,1745298662983,-506.11298069,0.00055342,120]
[358597751,1745298662994,-500.0,0.00055342,120]
[358597752,1745298663004,-500.0,0.00055342,120]
[358597753,1745298663014,-500.0,0.00055342,2]
[358597754,1745298663024,-609.40246809,0.00055342,120]
[358597755,1745298663034,-157.26475,0.00055342,120]
[358597756,1745298663044,-500.0,0.00055342,120]
[358597757,1745298663054,-500.0,0.00055342,120]
[358597758,1745298663067,-500.0,0.00055342,120]
[358597759,1745298663077,-500.0,0.00055342,120]
[358597760,1745298663087,-539.07792261,0.00055342,120]
[358597761,1745298663097,-500.0,0.00055342,120]
[358597762,1745298663111,-576.26550068,0.00055342,120]
[358597763,1745298663121,-151.0,0.00055342,120]
[358597764,1745298663131,-505.74,0.00055342,120]
[358597765,1745298663143,-500.0,0.00055342,120]
[358597766,1745298663153,-500.0,0.00055342,120]
[358597767,1745298663163,-552.95230979,0.00055342,120]
[358597768,1745298663173,-500.0,0.00055342,120]
[358597769,1745298663184,-500.0,0.00055342,120]
[358597770,1745298663194,-500.0,0.00055342,120]
[358597771,1745298663205,-500.0,0.00055342,120]
[358597772,1745298663215,-500.0,0.00055342,120]
[358597773,1745298663225,-500.0,0.00055342,120]
[358597774,1745298663236,-500.0,0.00055342,120]
[358597775,1745298663246,-500.0,0.00055342,120]
[358597776,1745298663257,-500.0,0.00055342,120]
[358597777,1745298663267,-500.0,0.00055342,120]
[358597778,1745298663278,-500.0,0.00055342,120]
[358597779,1745298663288,-500.0,0.00055342,120]
[358597780,1745298663298,-500.0,0.00055342,120]
[358597781,1745298663308,-572.53651576,0.00055342,120]
[358597782,1745298663318,-500.0,0.00055342,120]
[358597783,1745298663327,-500.0,0.00055342,120]
[358597784,1745298663337,-1000.0,0.00055342,120]
[358597785,1745298663347,-500.0,0.00055342,120]
[358597786,1745298663356,-500.0,0.00055342,120]
[358597787,1745298663366,-500.0,0.00055342,120]
[358597788,1745298663375,-500.0,0.00055342,120]
[358597789,1745298663384,-500.0,0.00055342,120]
[358597790,1745298663394,-1000.0,0.00055342,35]
[358597791,1745298663404,-500.0,0.00055342,120]
[358597792,1745298663413,-500.0,0.00055342,120]
[358597793,1745298663423,-500.0,0.00055342,120]
[358597794,1745298663433,-500.0,0.00055342,120]
[358597795,1745298663443,-500.0,0.00055342,120]
[358597796,1745298663452,-500.0,0.00055342,120]
[358597797,1745298663462,-500.0,0.00055342,120]
[358597798,1745298663472,-500.0,0.00055342,120]
[358597799,1745298663482,-567.71342256,0.00055342,120]
[358597800,1745298663492,-500.0,0.00055342,120]
[358597801,1745298663502,-500.0,0.00055342,120]
[358597802,1745298663512,-500.0,0.00055342,120]
[358597803,1745298663523,-329.21323948,0.00055342,120]
[358597804,1745298663532,-500.0,0.00055342,120]
[358597805,1745298663543,-500.0,0.00055342,120]
[358597806,1745298663553,-500.0,0.00055342,120]
[358597807,1745298663567,-500.0,0.00055342,120]
[358597808,1745298663577,-500.0,0.00055342,120]
[358597809,1745298663587,-500.0,0.00055342,120]
[358597810,1745298663598,-500.0,0.00055342,120]
[358597811,1745298663608,-229.64911962,0.00055342,57]
[358597812,1745298663619,-530.5695057,0.00055342,120]
[358597813,1745298663629,-500.0,0.00055342,120]
[358597814,1745298663639,-500.0,0.00055342,120]
[358597815,1745298663649,-1331.73,0.00055342,120]
[358597816,1745298663660,-608.02,0.00055342,120]
[358597817,1745298663669,-89923.15,0.00055342,7]
[358597818,1745298663679,-7874.31,0.00055342,120]
[358597819,1745298663689,-500.0,0.00055342,120]
[358597820,1745298663699,-500.0,0.00055342,120]
[358597821,1745298663709,-500.0,0.00055342,118]
[358597822,1745298663719,-500.0,0.00055342,12]
[358597823,1745298663729,-324.39950094,0.00055342,120]
[358597824,1745298663739,-500.55,0.00055342,120]
[358597825,1745298663749,-500.0,0.00055342,120]
[358597826,1745298663759,-500.0,0.00055342,120]
[358597827,1745298663768,-596.73227038,0.00055342,120]
[358597828,1745298663778,-540.58722197,0.00055342,120]
[358597829,1745298663787,-500.0,0.00055342,120]
[358597830,1745298663797,-500.0,0.00055342,120]
[358597831,1745298663807,-500.0,0.00055342,120]
[358597832,1745298663820,-500.0,0.00055342,120]
[358597833,1745298663830,-595.18984752,0.00055342,120]
[358597834,1745298663840,-322.05010773,0.00055342,120]
[358597835,1745298663850,-2542.58,0.00055342,120]
[358597836,1745298663860,-288.56016739,0.00055342,120]
[358597837,1745298663870,-705.34,0.00055342,120]
[358597838,1745298663880,-585.71,0.00055342,120]
[358597839,1745298663891,-601.33,0.00055342,120]
[358597840,1745298663900,-515.13639643,0.00055342,120]
[358597841,1745298663910,-500.0,0.00055342,120]
[358597842,1745298663920,-500.0,0.00055342,120]
[358597843,1745298663929,-500.0,0.00055342,120]
[358597844,1745298663939,-500.0,0.00055342,120]
[358597845,1745298663949,-318.35326438,0.00055342,120]
[358597846,1745298663959,-522.26044626,0.00055342,120]
[358597847,1745298663969,-500.0,0.00055342,30]
[358597848,1745298663979,-508.22,0.00055342,120]
[358597849,1745298663989,-500.0,0.00055342,120]
[358597850,1745298664000,-500.0,0.00055342,120]
[358597851,1745298664009,-500.0,0.00055342,120]
[358597852,1745298664019,-695.38,0.00055342,120]
[358597853,1745298664029,-500.0,0.00055342,120]
[358597854,1745298664040,-500.0,0.00055342,120]
[358597855,1745298664050,-528.15,0.00055342,120]
[358597856,1745298664063,-500.0,0.00055342,120]
[358597857,1745298664075,-500.0,0.00055342,120]
[358597858,1745298664085,-500.0,0.00055342,120]
[358597859,1745298664096,-500.0,0.00055342,120]
[358597860,1745298664106,-809.17,0.00055342,120]
[358597861,1745298664116,-500.0,0.00055342,120]
[358597862,1745298664127,-151.0,0.00055342,120]
[358597863,1745298664137,-756.42,0.00055342,120]
[358597864,1745298664148,-500.0,0.00055342,120]
[358597865,1745298664158,-500.0,0.00055342,120]
[358597866,1745298664169,-500.0,0.00055342,120]
[358597867,1745298664179,-500.0,0.00055342,120]
[358597868,1745298664190,-500.0,0.00055342,120]
[358597869,1745298664200,-500.0,0.00055342,120]
[358597870,1745298664211,-500.0,0.00055342,120]
[358597871,1745298664221,-560.6431916,0.00055342,120]
[358597872,1745298664232,-594.60222663,0.00055342,120]
[358597873,1745298664242,-210.69708429,0.00055342,120]
[358597874,1745298664252,-819.39,0.00055342,120]
[358597875,1745298664263,-628.87287396,0.00055342,120]
[358597876,1745298664274,-620.47514421,0.00055342,120]
[358597877,1745298664284,-500.0,0.00055342,120]
[358597878,1745298664295,-500.0,0.00055342,120]
[358597879,1745298664305,-500.0,0.00055342,120]
[358597880,1745298664316,-500.0,0.00055342,120]
[358597881,1745298664326,-500.0,0.00055342,120]
[358597882,1745298664336,-500.0,0.00055342,120]
[358597883,1745298664346,-556.49151047,0.00055342,120]
[358597884,1745298664356,-500.0,0.00055342,120]
[358597885,1745298664366,-501.39,0.00055342,120]
[358597886,1745298664376,-505.46,0.00055342,120]
[358597887,1745298664386,-151.0,0.00055342,120]
[358597888,1745298664395,-500.0,0.00055342,120]